fUST/lending_fUST_20250608
["ID","MTS","AMOUNT","RATE_DAILY","PERIOD"]
[364983206,1749379839299,-1327.71,0.00019239,2]
[364983207,1749379839309,-500.0,0.0001945,2]
[364983208,1749379839318,-500.0,0.0001945,2]
[364983209,1749379839328,-500.0,0.0001945,2]
[364983210,1749379839337,-203.01700946,0.0001945,2]
[364983211,1749379839346,-500.0,0.0001945,2]
[364983212,1749379839356,-500.0,0.0001945,2]
[364983213,1749379839365,-500.0,0.0001945,2]
[364983214,1749379839374,-500.0,0.0001945,2]
[364983215,1749379839383,-500.0,0.0001945,2]
[364983216,1749379839392,-218.06558391,0.0001945,2]
[364983217,1749379839403,-500.0,0.0001945,2]
[364983218,1749379839412,-500.0,0.0001945,2]
[364983219,1749379839421,-370.0,0.00019452,2]
[364983220,1749379839431,-410.0,0.00019452,2]
[364983221,1749379839440,-400.7134093,0.00019452,2]
[364983222,1749379839450,-256.93344488,0.00019452,2]
[364983223,1749379839459,-410.0,0.00019452,2]
[364983224,1749379839468,-410.0,0.00019452,2]
[364983225,1749379839478,-420.0,0.00019452,2]
[364983226,1749379839487,-420.0,0.00019452,2]
[364983227,1749379839497,-440.0,0.00019452,2]
[364983228,1749379839506,-420.0,0.00019452,2]
[364983229,1749379839515,-440.0,0.00019452,2]
[364983230,1749379839524,-440.0,0.00019452,2]
[364983231,1749379839533,-440.0,0.00019452,2]
[364983232,1749379839542,-410.0,0.00019452,2]
[364983233,1749379839552,-440.0,0.00019452,2]
[364983234,1749379839561,-410.0,0.00019452,2]
[364983235,1749379839571,-400.0,0.00019452,2]
[364983236,1749379839580,-400.0,0.00019452,2]
[364983237,1749379839589,-400.0,0.00019452,2]
[364983238,1749379839599,-410.0,0.00019452,2]
[364983239,1749379839608,-176.48041578,0.00019452,2]
[364983240,1749379839618,-400.0,0.00019452,2]
[364983241,1749379839628,-363.0829258,0.00019452,2]
[364983242,1749379839638,-432.28,0.00019452,2]
[364983243,1749379839647,-400.0,0.00019452,2]
[364983244,1749379839657,-410.0,0.00019452,2]
[364983245,1749379839667,-410.0,0.00019452,2]
[364983246,1749379839676,-437.8,0.00019452,2]
[364983247,1749379839686,-440.0,0.00019452,2]
[364983248,1749379839695,-440.0,0.00019452,2]
[364983249,1749379839704,-440.0,0.00019452,2]
[364983250,1749379839714,-440.0,0.00019452,2]
[364983251,1749379839723,-440.0,0.00019452,2]
[364983252,1749379839732,-463.39,0.00019452,2]
[364983253,1749379839742,-440.0,0.00019452,2]
[364983254,1749379839752,-440.0,0.00019452,2]
[364983255,1749379839761,-440.0,0.00019452,2]
[364983256,1749379839771,-440.0,0.00019452,2]
[364983257,1749379839781,-514.33,0.00019452,2]
[364983258,1749379839792,-440.0,0.00019452,2]
[364983259,1749379839801,-440.0,0.00019452,2]
[364983260,1749379839811,-480.74,0.00019452,2]
[364983261,1749379839820,-215.05,0.00019452,2]
[364983262,1749379839830,-440.0,0.00019452,2]
[364983263,1749379839840,-500.0,0.00019543,2]
[364983264,1749379839850,-390.0,0.00019726,2]
[364983265,1749379839859,-410.0,0.00019726,2]
[364983266,1749379839869,-410.0,0.00019726,2]
[364983267,1749379839878,-410.0,0.00019726,2]
[364983269,1749379839887,-166.58060694,0.00019726,2]
[364983271,1749379839897,-440.0,0.00019726,2]
[364983273,1749379839906,-440.0,0.00019726,2]
[364983275,1749379839916,-440.0,0.00019726,2]
[364983276,1749379839925,-440.0,0.00019726,2]
[364983277,1749379839935,-440.0,0.00019726,2]
[364983278,1749379839944,-463.39,0.00019726,2]
[364983279,1749379839954,-440.0,0.00019726,2]
[364983280,1749379839963,-440.0,0.00019726,2]
[364983281,1749379839973,-440.0,0.00019726,2]
[364983282,1749379839982,-440.0,0.00019726,2]
[364983283,1749379839992,-514.33,0.00019726,2]
[364983284,1749379840002,-440.0,0.00019726,2]
[364983285,1749379840011,-440.0,0.00019726,2]
[364983286,1749379840022,-480.74,0.00019726,2]
[364983287,1749379840031,-420.0,0.00019728,2]
[364983288,1749379840041,-1549.0,0.00019979,2]
[364983289,1749379840051,-403.63881371,0.0002,2]
[364983290,1749379840060,-440.0,0.0002,2]
[364983291,1749379840069,-440.0,0.0002,2]
[364983292,1749379840080,-440.0,0.0002,2]
[364983293,1749379840201,-463.39,0.0002,2]
[364983294,1749379840213,-440.0,0.0002,2]
[364983295,1749379840224,-440.0,0.0002,2]
[364983296,1749379840238,-440.0,0.0002,2]
[364983297,1749379840248,-440.0,0.0002,2]
[364983298,1749379840258,-514.33,0.0002,2]
[364983299,1749379840268,-440.0,0.0002,2]
[364983300,1749379840277,-440.0,0.0002,2]
[364983301,1749379840287,-480.74,0.0002,2]
[364983302,1749379840297,-213.05153702,0.00020083,2]
[364983303,1749379840307,-160.0,0.00020083,2]
[364983304,1749379840316,-423.98131849,0.00020083,2]
[364983305,1749379840326,-229.60437222,0.00020083,2]
[364983306,1749379840337,-842.5625,0.00020085,2]
[364983307,1749379840347,-834.50537533,0.00020085,2]
[364983308,1749379840356,-160.0,0.00020085,2]
[364983309,1749379840366,-180.35542098,0.00020149,2]
[364983310,1749379840375,-213.13863,0.00020187,2]
[364983311,1749379840385,-440.0,0.00020273,2]
[364983312,1749379840394,-440.0,0.00020273,2]
[364983313,1749379840404,-440.0,0.00020273,2]
[364983314,1749379840413,-463.39,0.00020273,2]
[364983315,1749379840423,-440.0,0.00020273,2]
[364983316,1749379840432,-440.0,0.00020273,2]
[364983317,1749379840441,-440.0,0.00020273,2]
[364983318,1749379840451,-440.0,0.00020273,2]
[364983319,1749379840461,-514.33,0.00020273,2]
[364983320,1749379840470,-440.0,0.00020273,2]
[364983321,1749379840479,-440.0,0.00020273,2]
[364983322,1749379840489,-480.74,0.00020273,2]
[364983323,1749379840499,-158.81229681,0.00020447,2]
[364983324,1749379840509,-440.0,0.00020547,2]
[364983325,1749379840518,-440.0,0.00020547,2]
[364983326,1749379840527,-440.0,0.00020547,2]
[364983327,1749379840537,-463.39,0.00020547,2]
[364983328,1749379840546,-440.0,0.00020547,2]
[364983329,1749379840555,-440.0,0.00020547,2]
[364983330,1749379840565,-440.0,0.00020547,2]
[364983331,1749379840575,-440.0,0.00020547,2]
[364983332,1749379840585,-514.33,0.00020547,2]
[364983333,1749379840595,-440.0,0.00020547,2]
[364983334,1749379840605,-440.0,0.00020547,2]
[364983335,1749379840615,-480.74,0.00020547,2]
[364983336,1749379840624,-501.24,0.000206,2]
[364983337,1749379840633,-1770.28,0.00020719,2]
[364983338,1749379840642,-440.0,0.00020821,2]
[364983339,1749379840652,-440.0,0.00020821,2]
[364983340,1749379840662,-277.62005344,0.00020821,2]
[364983341,1749379840671,-463.39,0.00020821,2]
[364983342,1749379840680,-440.0,0.00020821,2]
[364983343,1749379840690,-440.0,0.00020821,2]
[364983344,1749379840713,-440.0,0.00020821,2]
[364983345,1749379840724,-440.0,0.00020821,2]
[364983346,1749379840734,-514.33,0.00020821,2]
[364983347,1749379840744,-440.0,0.00020821,2]
[364983348,1749379840754,-440.0,0.00020821,2]
[364983349,1749379840764,-480.74,0.00020821,2]
[364983350,1749379840775,-900.0,0.00020883,2]
[364983351,1749379840785,-440.0,0.00021095,2]
[364983352,1749379840796,-440.0,0.00021095,2]
[364983353,1749379840806,-463.39,0.00021095,2]
[364983354,1749379840817,-440.0,0.00021095,2]
[364983355,1749379840826,-440.0,0.00021095,2]
[364983356,1749379840838,-440.0,0.00021095,2]
[364983357,1749379840848,-440.0,0.00021095,2]
[364983358,1749379840858,-514.33,0.00021095,2]
[364983359,1749379840869,-440.0,0.00021095,2]
[364983360,1749379840879,-440.0,0.00021095,2]
[364983361,1749379840889,-480.74,0.00021095,2]
[364983362,1749379840900,-150.0,0.00021262,30]
[364983363,1749379840911,-440.0,0.00021369,2]
[364983364,1749379840923,-440.0,0.00021369,2]
[364983365,1749379840934,-463.39,0.00021369,2]
[364983366,1749379840943,-440.0,0.00021369,2]
[364983367,1749379840953,-440.0,0.00021369,2]
[364983368,1749379840964,-440.0,0.00021369,2]
[364983369,1749379840974,-440.0,0.00021369,2]
[364983370,1749379840984,-514.33,0.00021369,2]
[364983371,1749379840994,-440.0,0.00021369,2]
[364983372,1749379841004,-440.0,0.00021369,2]
[364983373,1749379841014,-480.74,0.00021369,2]
[364983374,1749379841024,-846.02,0.00021386,10]
[364983375,1749379841034,-24900.0,0.00021397,2]
[364983376,1749379841044,-1991.57,0.00021459,2]
[364983377,1749379841054,-587.0,0.00021524,2]
[364983378,1749379841063,-440.0,0.00021643,2]
[364983379,1749379841073,-272.67243192,0.00021643,2]
[364983380,1749379841083,-463.39,0.00021643,2]
[364983381,1749379841093,-440.0,0.00021643,2]
[364983382,1749379841103,-440.0,0.00021643,2]
[364983383,1749379841113,-440.0,0.00021643,2]
[364983384,1749379841123,-440.0,0.00021643,2]
[364983385,1749379841133,-514.33,0.00021643,2]
[364983386,1749379841143,-440.0,0.00021643,2]
[364983387,1749379841152,-440.0,0.00021643,2]
[364983388,1749379841162,-480.74,0.00021643,2]
[364983389,1749379841171,-500.0,0.00021763,2]
[364983390,1749379841182,-500.0,0.00021763,2]
[364983391,1749379841191,-440.0,0.00021917,2]
[364983392,1749379841201,-463.39,0.00021917,2]
[364983393,1749379841210,-500.0,0.00021917,2]
[364983394,1749379841220,-510.57176169,0.00021917,2]
[364983395,1749379841230,-440.0,0.00021917,2]
[364983396,1749379841242,-440.0,0.00021917,2]
[364983397,1749379841252,-440.0,0.00021917,2]
[364983398,1749379841262,-514.33,0.00021917,2]
[364983399,1749379841271,-440.0,0.00021917,2]
[364983400,1749379841281,-440.0,0.00021917,2]
[364983401,1749379841291,-480.74,0.00021917,2]
[364983402,1749379841301,-900.0,0.00021979,2]
[364983403,1749379841316,-158.81229679,0.00022024,2]
[364983404,1749379841326,-783.758,0.00022067,2]
[364983405,1749379841335,-2227.0,0.00022067,2]
[364983406,1749379841346,-166.0,0.00022115,3]
[364983407,1749379841357,-166.0,0.00022115,3]
[364983408,1749379841366,-166.0,0.00022115,3]
[364983409,1749379841376,-166.0,0.00022116,3]
[364983410,1749379841386,-1744.0,0.00022116,3]
[364983411,1749379841396,-162.6907512,0.00022116,3]
[364983412,1749379841406,-1744.0,0.00022116,3]
[364983413,1749379841415,-1744.0,0.00022116,3]
[364983414,1749379841425,-154.1560932,0.00022116,3]
[364983415,1749379841435,-1744.0,0.00022116,3]
[364983416,1749379841447,-1744.0,0.00022116,3]
[364983417,1749379841457,-1744.0,0.00022116,3]
[364983418,1749379841468,-1744.0,0.00022116,3]
[364983419,1749379841479,-1744.0,0.00022116,3]
[364983420,1749379841489,-1744.0,0.00022116,3]
[364983421,1749379841501,-316.0,0.00022116,3]
[364983422,1749379841513,-1744.0,0.00022116,3]
[364983423,1749379841524,-1744.0,0.00022116,3]
[364983424,1749379841534,-316.0,0.00022116,3]
[364983425,1749379841544,-1744.0,0.00022116,3]
[364983426,1749379841555,-316.0,0.00022116,3]
[364983427,1749379841565,-1744.0,0.00022116,3]
[364983428,1749379841575,-321.92293093,0.00022116,3]
[364983429,1749379841585,-1744.0,0.00022116,3]
[364983430,1749379841595,-1744.0,0.00022116,3]
[364983431,1749379841605,-1744.0,0.00022116,3]
[364983432,1749379841616,-1744.0,0.00022116,3]
[364983433,1749379841626,-1744.0,0.00022116,3]
[364983434,1749379841637,-1744.0,0.00022116,3]
[364983435,1749379841648,-1744.0,0.00022116,3]
[364983436,1749379841660,-1744.0,0.00022116,3]
[364983437,1749379841670,-1744.0,0.00022116,3]
[364983438,1749379841680,-1744.0,0.00022116,3]
[364983439,1749379841689,-505.05556208,0.00022116,3]
[364983440,1749379841698,-481.18565199,0.00022123,2]
[364983441,1749379841708,-500.0,0.00022123,2]
[364983442,1749379841717,-612.82522177,0.00022123,2]
[364983443,1749379841727,-440.0,0.00022191,4]
[364983444,1749379841738,-463.39,0.00022191,4]
[364983445,1749379841748,-440.0,0.00022191,4]
[364983446,1749379841758,-440.0,0.00022191,4]
[364983447,1749379841768,-440.0,0.00022191,4]
[364983448,1749379841779,-514.33,0.00022191,4]
[364983449,1749379841788,-440.0,0.00022191,4]
[364983450,1749379841799,-440.0,0.00022191,4]
[364983451,1749379841811,-480.74,0.00022191,4]
[364983452,1749379841821,-2212.85,0.00022199,2]
[364983453,1749379841831,-189.17302754,0.000222,69]
[364983454,1749379841841,-189.17302754,0.000222,69]
[364983455,1749379841851,-189.17302754,0.000222,69]
[364983456,1749379841861,-500.0,0.00022273,2]
[364983457,1749379841871,-500.0,0.00022273,2]
[364983458,1749379841881,-500.0,0.00022273,2]
[364983459,1749379841892,-500.0,0.00022273,2]
[364983460,1749379841902,-600.0,0.00022273,2]
[364983461,1749379841912,-500.0,0.00022273,2]
[364983462,1749379841923,-189.67,0.00022275,30]
[364983463,1749379841936,-1002.06786853,0.0002231,2]
[364983464,1749379841946,-1005.58408614,0.0002231,2]
[364983465,1749379841957,-800.0,0.00022384,2]
[364983466,1749379841968,-501.24,0.000224,7]
[364983467,1749379841979,-500.0,0.00022425,2]
[364983468,1749379841990,-440.0,0.00022465,4]
[364983469,1749379842000,-463.39,0.00022465,4]
[364983470,1749379842011,-500.0,0.00022465,2]
[364983471,1749379842021,-440.0,0.00022465,4]
[364983472,1749379842030,-440.0,0.00022465,4]
[364983473,1749379842040,-440.0,0.00022465,4]
[364983474,1749379842050,-514.33,0.00022465,4]
[364983475,1749379842060,-440.0,0.00022465,4]
[364983476,1749379842070,-440.0,0.00022465,4]
[364983477,1749379842080,-480.74,0.00022465,4]
[364983478,1749379842090,-2470.86963864,0.00022472,2]
[364983479,1749379842100,-207.4,0.0002255,2]
[364983480,1749379842110,-500.0,0.0002255,2]
[364983481,1749379842120,-500.0,0.0002255,2]
[364983482,1749379842130,-500.0,0.0002255,2]
[364983483,1749379842140,-5000.0,0.0002255,2]
[364983484,1749379842150,-500.0,0.0002255,2]
[364983485,1749379842161,-500.0,0.0002255,2]
[364983486,1749379842171,-500.0,0.0002255,2]
[364983487,1749379842181,-500.0,0.0002255,2]
[364983488,1749379842190,-500.0,0.0002255,2]
[364983489,1749379842200,-500.0,0.0002255,2]
[364983490,1749379842210,-500.0,0.0002255,2]
[364983491,1749379842219,-500.0,0.0002255,2]
[364983492,1749379842235,-500.0,0.0002255,2]
[364983493,1749379842246,-461.42873487,0.0002255,2]
[364983494,1749379842257,-5000.0,0.00022603,2]
[364983495,1749379842267,-151325.54898797,0.0002263,2]
[364983496,1749379842277,-364.8515477,0.00022658,2]
[364983497,1749379842288,-356.1854546,0.00022658,2]
[364983498,1749379842298,-364.8515477,0.00022658,2]
[364983499,1749379842308,-501.31417441,0.00022671,2]
[364983500,1749379842319,-12500.0,0.00022713,3]
[364983501,1749379842331,-500.0,0.00022713,2]
[364983502,1749379842341,-12500.0,0.00022721,3]
[364983503,1749379842351,-507.47350341,0.00022728,2]
[364983504,1749379842361,-500.0,0.00022728,2]
[364983505,1749379842372,-502.14087963,0.00022728,2]
[364983506,1749379842382,-501.54662461,0.00022728,2]
[364983507,1749379842393,-502.01125953,0.00022728,2]
[364983508,1749379842403,-500.0,0.00022728,2]
[364983509,1749379842414,-500.0,0.00022728,2]
[364983510,1749379842424,-12500.0,0.0002273,3]
[364983511,1749379842435,-12500.0,0.0002273,3]
[364983512,1749379842445,-12500.0,0.00022739,3]
[364983513,1749379842456,-12500.0,0.00022739,3]
[364983514,1749379842467,-12500.0,0.00022739,3]
[364983515,1749379842478,-440.0,0.00022739,4]
[364983516,1749379842488,-463.39,0.00022739,4]
[364983517,1749379842498,-440.0,0.00022739,4]
[364983519,1749379842508,-440.0,0.00022739,4]
[364983520,1749379842518,-440.0,0.00022739,4]
[364983521,1749379842528,-514.33,0.00022739,4]
[364983522,1749379842538,-440.0,0.00022739,4]
[364983523,1749379842550,-440.0,0.00022739,4]
[364983525,1749379842560,-480.74,0.00022739,4]
[364983527,1749379842570,-1000.0,0.00022821,2]
[364983529,1749379842580,-1000.0,0.00022821,2]
[364983531,1749379842590,-1000.0,0.00022821,2]
[364983532,1749379842600,-1000.0,0.00022821,2]
[364983533,1749379842611,-1200.0,0.00022821,2]
[364983534,1749379842621,-1000.0,0.00022821,2]
[364983535,1749379842631,-189.17302754,0.00022829,72]
[364983536,1749379842642,-500.0,0.00022916,2]
[364983537,1749379842652,-153.0,0.00022932,2]
[364983538,1749379842662,-153.0,0.00022932,2]
[364983539,1749379842671,-153.0,0.00022932,2]
[364983540,1749379842681,-153.0,0.00022932,2]
[364983541,1749379842691,-500.0,0.00022936,2]
[364983542,1749379842701,-176.7524085,0.00022959,2]
[364983543,1749379842710,-192.3900831,0.00022959,2]
[364983544,1749379842720,-573.126752,0.00022959,2]
[364983545,1749379842730,-159.0892385,0.00022959,2]
[364983546,1749379842741,-153.0,0.00022959,2]
[364983547,1749379842752,-176.7524085,0.00022959,2]
[364983548,1749379842763,-306.0,0.00022959,2]
[364983549,1749379842773,-573.126752,0.00022959,2]
[364983550,1749379842783,-176.7524085,0.00022959,2]
[364983551,1749379842793,-573.126752,0.00022959,2]
[364983552,1749379842804,-176.7524085,0.00022959,2]
[364983553,1749379842814,-952.4104622,0.00022959,2]
[364983554,1749379842834,-306.0,0.00022959,2]
[364983555,1749379842847,-158.6873432,0.00022959,2]
[364983556,1749379842857,-153.0,0.00022959,2]
[364983557,1749379842867,-350.0993062,0.00022959,2]
[364983558,1749379842878,-573.126752,0.00022959,2]
[364983559,1749379842889,-158.6873433,0.00022959,2]
[364983560,1749379842900,-176.7524085,0.00022959,2]
[364983561,1749379842910,-413.4953297,0.00022959,2]
[364983563,1749379842920,-153.0,0.00022959,2]
[364983566,1749379842930,-573.126752,0.00022959,2]
[364983568,1749379842941,-176.7524085,0.00022959,2]
[364983570,1749379842951,-158.6873431,0.00022959,2]
[364983572,1749379842962,-573.126752,0.00022959,2]
[364983573,1749379842972,-573.126752,0.00022959,2]
[364983574,1749379842982,-176.7524085,0.00022959,2]
[364983575,1749379842992,-158.6873433,0.00022959,2]
[364983576,1749379843003,-176.7524085,0.00022959,2]
[364983577,1749379843014,-158.6873431,0.00022959,2]
[364983578,1749379843023,-573.126752,0.00022959,2]
[364983579,1749379843034,-498.9610189,0.00022959,2]
[364983580,1749379843044,-317.3746867,0.00022959,2]
[364983581,1749379843054,-573.126752,0.00022959,2]
[364983582,1749379843065,-573.126752,0.00022959,2]
[364983583,1749379843076,-1146.253504,0.00022959,2]
[364983584,1749379843086,-1002.56944552,0.00022973,2]
[364983585,1749379843096,-101723.42500384,0.00022987,11]
[364983589,1749379843260,-267.37389591,0.00019178,2]
[364983595,1749379845971,-172.62610409,0.00019178,2]
[364983596,1749379845982,-206.83089591,0.00019452,2]
[364983597,1749379846026,-233.16910409,0.00019452,2]
[364983598,1749379846038,-440.0,0.00019726,2]
[364983599,1749379846049,-269.86780534,0.00019726,2]
[364983605,1749380028361,150.0,0.00015521,2]
[364983606,1749380106910,150.0,0.00015524,2]
[364983607,1749380186304,150.0,0.00015524,2]
[364983608,1749380266568,150.0,0.00015753,2]
[364983609,1749380343642,21.28837449,0.00015725,2]
[364983610,1749380343667,128.71162551,0.00015725,2]
[364983612,1749380374434,191.824767,0.00013699,2]
[364983616,1749380421440,150.0,0.0001554,2]
[364983617,1749380501262,150.0,0.00015915,2]
[364983618,1749380579677,192.13,0.00015949,2]
[364983619,1749380660666,266.41,0.00015593,2]
[364983620,1749380741431,263.02,0.00015805,2]
[364983621,1749380823518,259.67,0.00015769,2]
[364983622,1749380907687,256.37,0.00015764,2]
[364983623,1749380989008,253.1,0.00015775,2]
[364983688,1749381038092,-506.21,0.00016526,2]
[364983690,1749381038103,-759.31,0.00017278,2]
[364983692,1749381038113,-1012.41,0.00018029,2]
[364983694,1749381038123,-3569.9875915,0.00018369,2]
[364983696,1749381038133,-300.0,0.00018378,2]
[364983698,1749381038143,-981.0,0.00018378,2]
[364983700,1749381038153,-211.32526887,0.00018379,2]
[364983702,1749381038164,-405.57195264,0.00018379,2]
[364983705,1749381038173,-333.60975181,0.00018379,2]
[364983707,1749381038184,-24900.0,0.0001838,2]
[364983709,1749381038193,-206.84845345,0.00018602,2]
[364983711,1749381038203,-1265.52,0.0001878,2]
[364983713,1749381038213,-2470.86963864,0.000189,2]
[364983715,1749381038223,-8650.75984,0.00019177,2]
[364983717,1749381038233,-199.24480459,0.00019178,2]
[364983719,1749381038242,-440.0,0.00019178,2]
[364983721,1749381038253,-437.56840292,0.00019178,2]
[364983723,1749381038262,-431.86204897,0.00019178,2]
[364983725,1749381038272,-430.0,0.00019178,2]
[364983727,1749381038282,-430.0,0.00019178,2]
[364983729,1749381038291,-440.0,0.00019178,2]
[364983731,1749381038301,-508.29534642,0.00019178,2]
[364983733,1749381038310,-434.86590658,0.00019178,2]
[364983735,1749381038320,-430.0,0.00019178,2]
[364983737,1749381038331,-430.0,0.00019178,2]
[364983739,1749381038340,-430.0,0.00019178,2]
[364983741,1749381038350,-430.0,0.00019178,2]
[364983743,1749381038360,-440.0,0.00019178,2]
[364983745,1749381038371,-440.0,0.00019178,2]
[364983748,1749381038382,-440.0,0.00019178,2]
[364983750,1749381038392,-440.0,0.00019178,2]
[364983752,1749381038402,-440.0,0.00019178,2]
[364983754,1749381038412,-440.0,0.00019178,2]
[364983756,1749381038422,-440.0,0.00019178,2]
[364983758,1749381038432,-440.0,0.00019178,2]
[364983760,1749381038442,-448.27,0.00019178,2]
[364983762,1749381038451,-440.0,0.00019178,2]
[364983764,1749381038461,-275.05136514,0.00019178,2]
[364983766,1749381038474,-440.0,0.00019178,2]
[364983768,1749381038483,-440.0,0.00019178,2]
[364983770,1749381038493,-440.0,0.00019178,2]
[364983772,1749381038503,-440.0,0.00019178,2]
[364983774,1749381038512,-440.0,0.00019178,2]
[364983776,1749381038522,-440.0,0.00019178,2]
[364983778,1749381038531,-236.15,0.00019178,2]
[364983780,1749381038541,-440.0,0.00019178,2]
[364983782,1749381038551,-440.0,0.00019178,2]
[364983784,1749381038562,-310.92320749,0.00019178,2]
[364983786,1749381038572,-440.0,0.00019178,2]
[364983789,1749381038582,-440.0,0.00019178,2]
[364983791,1749381038592,-440.0,0.00019178,2]
[364983793,1749381038602,-440.0,0.00019452,2]
[364983795,1749381038611,-440.0,0.00019452,2]
[364983797,1749381038621,-440.0,0.00019452,2]
[364983799,1749381038631,-440.0,0.00019452,2]
[364983801,1749381038641,-440.0,0.00019452,2]
[364983803,1749381038651,-275.43507727,0.00019452,2]
[364983805,1749381038661,-448.27,0.00019452,2]
[364983807,1749381038670,-440.0,0.00019452,2]
[364983809,1749381038680,-440.0,0.00019452,2]
[364983811,1749381038689,-440.0,0.00019452,2]
[364983813,1749381038699,-440.0,0.00019452,2]
[364983815,1749381038709,-440.0,0.00019452,2]
[364983817,1749381038719,-440.0,0.00019452,2]
[364983819,1749381038729,-440.0,0.00019452,2]
[364983821,1749381038739,-318.99615271,0.00019452,2]
[364983823,1749381038749,-440.0,0.00019452,2]
[364983825,1749381038758,-440.0,0.00019452,2]
[364983827,1749381038769,-440.0,0.00019452,2]
[364983829,1749381038779,-1518.62,0.00019531,2]
[364983831,1749381038789,-440.0,0.00019726,2]
[364983833,1749381038799,-572.71,0.00019726,2]
[364983836,1749381038811,-440.0,0.00019726,2]
[364983838,1749381038820,-440.0,0.00019726,2]
[364983840,1749381038830,-543.14,0.00019726,2]
[364983842,1749381038839,-448.27,0.00019726,2]
[364983844,1749381038849,-440.0,0.00019726,2]
[364983846,1749381038858,-440.0,0.00019726,2]
[364983848,1749381038868,-440.0,0.00019726,2]
[364983850,1749381038878,-440.0,0.00019726,2]
[364983852,1749381038888,-440.0,0.00019726,2]
[364983854,1749381038899,-440.0,0.00019726,2]
[364983856,1749381038909,-440.0,0.00019726,2]
[364983858,1749381038919,-440.0,0.00019726,2]
[364983860,1749381038928,-460.53,0.00019726,2]
[364983862,1749381038938,-440.0,0.0002,2]
[364983864,1749381038949,-440.0,0.0002,2]
[364983866,1749381038958,-448.27,0.0002,2]
[364983868,1749381038968,-440.0,0.0002,2]
[364983870,1749381038978,-440.0,0.0002,2]
[364983872,1749381038988,-440.0,0.0002,2]
[364983874,1749381038998,-440.0,0.0002,2]
[364983876,1749381039007,-440.0,0.0002,2]
[364983878,1749381039016,-440.0,0.0002,2]
[364983880,1749381039026,-440.0,0.0002,2]
[364983882,1749381039035,-440.0,0.0002,2]
[364983884,1749381039045,-420.0,0.00020045,2]
[364983886,1749381039054,-163.289,0.00020145,2]
[364983888,1749381039064,-213.05153702,0.00020159,2]
[364983890,1749381039074,-160.0,0.00020161,2]
[364983892,1749381039083,-423.98131849,0.00020161,2]
[364983894,1749381039093,-229.60437222,0.00020161,2]
[364983896,1749381039102,-191.824767,0.00020187,2]
[364983897,1749381039111,-440.0,0.00020273,2]
[364983898,1749381039121,-440.0,0.00020273,2]
[364983899,1749381039131,-448.27,0.00020273,2]
[364983900,1749381039140,-440.0,0.00020273,2]
[364983901,1749381039150,-440.0,0.00020273,2]
[364983902,1749381039159,-440.0,0.00020273,2]
[364983903,1749381039170,-440.0,0.00020273,2]
[364983904,1749381039179,-440.0,0.00020273,2]
[364983905,1749381039189,-440.0,0.00020273,2]
[364983906,1749381039198,-440.0,0.00020273,2]
[364983907,1749381039208,-440.0,0.00020273,2]